bitfinex/quotes_ETHUSD_20250222
["timestamp","ask_amount","ask_price","bid_price","bid_amount"]
[1740248096262,3.58656,2788.2,2787.9,0.19595482]
[1740248096439,4.66651673,2788.2,2787.8,0.19606044]
[1740248096769,4.66651673,2788.2,2787.9,0.19595482]
[1740248097063,1.07995673,2788.2,2787.9,0.19595482]
[1740248097464,3.58654,2788.2,2787.9,0.19595482]
[1740248097967,0.7554,2788.1,2787.6,3.58722]
[1740248098133,0.7554,2788.1,2787.7,3.78326607]
[1740248098532,0.7554,2788.1,2787.8,3.58699]
[1740248098836,0.7554,2788.1,2787.9,0.19595482]
[1740248100430,3.7554,2788.4,2788.1,3.5866]
[1740248100634,9.5813,2788.7,2788.1,0.8102]
[1740248100859,3.58615,2788.6,2788.2,0.19563801]
[1740248101053,3.0,2788.6,2788.2,0.19563801]
[1740248101259,3.58618,2788.5,2788.2,0.19563801]
[1740248101653,3.58629,2788.4,2788.2,0.19563801]
[1740248101867,1.769747,2788.4,2787.7,3.5871]
[1740248102064,7.88878,2788.4,2788.3,0.19593344]
[1740248102270,3.58686,2788.0,2787.6,4.4128]
[1740248102446,3.7525,2788.4,2787.6,0.7839]
[1740248102645,0.7525,2788.1,2787.7,0.19652889]
[1740248102973,4.33919,2788.1,2787.7,0.19652889]
[1740248104038,3.58683,2788.0,2787.7,0.19652889]
[1740248104332,4.33919,2788.1,2787.9,0.71505818]
[1740248104570,4.33919,2788.1,2788.0,0.19621203]
[1740248105267,8.131763,2788.1,2788.0,0.19621203]
[1740248105467,8.681763,2788.1,2788.0,0.19621203]
[1740248105638,3.58717,2787.8,2787.4,0.775]
[1740248105969,3.58717,2787.8,2787.5,0.19674017]
[1740248106161,8.681833,2788.1,2787.5,0.19674017]
[1740248106557,3.58707,2787.8,2787.5,0.19674017]
[1740248106736,3.58696,2787.9,2787.5,0.19674017]
[1740248107150,3.7525,2788.1,2787.7,3.58715]
[1740248107355,3.0,2788.1,2787.8,1.01392327]
[1740248107772,3.0,2788.1,2787.8,4.60091327]
[1740248108977,3.0,2788.1,2787.8,1.01392327]
[1740248109343,3.0,2788.1,2787.8,0.19642327]
[1740248109551,3.0,2788.1,2787.7,3.58718]
[1740248109751,3.0,2788.1,2787.8,0.19656969]
[1740248109987,3.0,2788.1,2787.7,3.58718]
[1740248110174,3.0,2788.1,2787.8,0.19656969]
[1740248110370,3.0,2788.1,2787.7,3.58718]
[1740248110547,3.0,2788.1,2787.8,0.19656969]
[1740248110752,3.0,2788.1,2787.7,3.58718]
[1740248111064,3.0,2788.1,2787.8,0.19656969]
[1740248111395,3.0,2788.1,2787.7,3.58718]
[1740248111568,3.0,2788.1,2787.9,0.19645134]
[1740248111908,0.8249,2788.4,2787.9,3.58681]
[1740248112049,3.58583,2788.8,2788.2,3.58641]
[1740248112375,4.41533,2788.8,2788.3,3.78241894]
[1740248113283,3.0,2788.7,2788.3,0.19602894]
[1740248113789,0.8295,2789.1,2788.5,3.58604]
[1740248113951,0.8295,2789.1,2788.6,0.19564217]
[1740248114157,4.41495,2789.1,2788.6,3.78163217]
[1740248115183,3.0,2789.0,2788.6,3.78163217]
[1740248115384,4.4147,2789.3,2788.6,4.24047539]
[1740248115598,6.0695,2789.5,2788.7,0.8072]
[1740248115890,3.58481,2789.6,2789.2,0.8072]
[1740248116090,0.716949,2789.5,2789.2,0.8072]
[1740248116396,3.58468,2789.7,2789.3,0.1945788]
[1740248116594,0.8295,2789.8,2789.3,0.1945788]
[1740248116790,3.58485,2789.6,2789.2,0.8072]
[1740248117025,3.0,2789.5,2789.3,0.1945788]
[1740248117315,7.16943,2789.7,2789.2,0.8072]
[1740248117474,3.58475,2789.6,2789.3,0.1945788]
[1740248117678,3.58475,2789.6,2789.2,0.8072]
[1740248117929,3.58471,2789.7,2789.2,4.39236]
[1740248118135,3.58471,2789.7,2789.3,0.1945788]
[1740248118442,3.0,2789.8,2789.4,3.58499]
[1740248118583,3.0,2789.8,2789.4,3.77912607]
[1740248118938,3.0,2789.8,2789.4,0.19413607]
[1740248119314,3.0,2789.8,2789.4,3.77909607]
[1740248120234,3.0,2789.8,2789.4,0.19413607]
[1740248120603,3.58482,2789.6,2789.2,1.604964]
[1740248120806,3.58482,2789.6,2789.5,0.19403057]
[1740248121145,3.58468,2789.7,2789.2,0.8072]
[1740248121630,3.58468,2789.7,2789.3,0.19424158]
[1740248121936,3.58468,2789.7,2789.2,4.39244]
[1740248122136,3.58475,2789.6,2789.2,0.8072]
[1740248122347,3.58468,2789.7,2789.3,0.19424158]
[1740248122645,3.58508,2789.4,2789.2,0.8072]
[1740248122806,3.58547,2789.1,2788.9,3.6289]
[1740248123003,3.58547,2789.1,2788.8,0.7868]
[1740248124044,3.58573,2788.9,2788.6,0.7868]
[1740248124336,3.58598,2788.7,2788.5,8.06147037]
[1740248126041,3.5858,2788.8,2788.5,8.06147037]
[1740248126250,4.35862,2788.9,2788.5,8.06147037]
[1740248126560,4.35862,2788.9,2788.5,7.327]
[1740248126961,0.7729,2788.9,2788.5,10.91314]
[1740248127162,3.58571,2788.9,2788.5,7.327]
[1740248127882,7.17143,2788.9,2788.5,7.327]
[1740248128592,7.17144,2788.9,2788.4,3.58621]
[1740248128896,7.17144,2788.9,2788.3,0.7868]
[1740248128897,3.58584,2788.8,2788.3,4.37321]
[1740248130297,3.58599,2788.7,2788.3,0.7868]
[1740248130646,3.5859,2788.7,2788.3,0.7868]
[1740248130855,3.58584,2788.8,2788.3,0.7868]
[1740248131044,3.58618,2788.5,2788.3,0.7868]
[1740248131589,3.5859,2788.7,2788.3,0.7868]
[1740248133397,3.58577,2788.8,2788.3,4.37321]
[1740248135800,3.58577,2788.8,2788.3,0.7868]
[1740248136303,3.58577,2788.8,2788.3,4.37312]
[1740248137203,3.58577,2788.8,2788.4,0.19473328]
[1740248137906,3.58577,2788.8,2788.7,0.73021699]
[1740248138407,3.58577,2788.8,2788.7,0.92463357]
[1740248141077,3.0,2789.0,2788.7,0.92463357]
[1740248141310,6.58552,2789.0,2788.7,0.92463357]
[1740248141516,3.0,2789.0,2788.7,0.92463357]
[1740248141989,3.58546,2789.1,2788.7,0.19441658]
[1740248142378,6.58553,2789.0,2788.7,0.19441658]
[1740248142609,6.58553,2789.0,2788.5,3.58613]
[1740248142813,6.58553,2789.0,2788.6,3.78102568]
[1740248143411,0.831,2789.2,2788.8,3.58576]
[1740248143611,0.831,2789.2,2788.9,0.19468902]
[1740248144035,4.41627,2789.2,2788.9,0.19468902]
[1740248144308,3.0,2789.0,2788.9,0.19468902]
[1740248146015,3.0,2789.0,2788.6,0.7918]
[1740248146175,6.58557,2789.0,2788.7,0.19477921]
[1740248146813,3.58577,2788.8,2788.7,0.19477921]
[1740248147160,14.221011,2788.8,2788.7,0.19477921]
[1740248147339,3.0,2788.7,2788.0,0.70198375]
[1740248147542,3.58661,2788.2,2788.1,0.19541904]
[1740248149729,3.58646,2788.3,2788.1,0.19541904]
[1740248150263,3.58654,2788.2,2788.1,0.19541904]
[1740248151810,4.33801,2788.3,2788.1,0.19541904]
[1740248152055,3.0,2788.5,2788.1,0.19541904]
[1740248152404,3.0,2788.5,2788.1,3.78208904]
[1740248152611,3.0,2788.5,2788.3,0.7634]
[1740248152822,3.0,2788.5,2788.4,0.19535049]
[1740248153328,5.24,2788.8,2788.4,0.19535049]
[1740248153659,5.24,2788.8,2788.4,3.78163049]
[1740248153970,4.33706,2789.1,2788.5,3.58604]
[1740248154130,3.58553,2789.0,2788.5,4.04051905]
[1740248154315,3.0,2788.9,2788.6,0.19550848]
[1740248155958,3.58566,2788.9,2788.6,0.19550848]
[1740248158588,3.58566,2788.9,2788.3,4.3497]
[1740248158774,3.58577,2788.8,2788.4,0.63068962]
[1740248159183,3.58565,2788.9,2788.4,4.21695962]
[1740248159603,3.58565,2788.9,2788.4,0.63068962]
[1740248159802,3.58565,2788.9,2788.4,4.21689962]
[1740248160183,3.58565,2788.9,2788.4,0.63068962]
[1740248160369,3.58565,2788.9,2788.5,0.49803896]
[1740248160604,3.58565,2788.9,2788.6,0.19550848]
[1740248160875,7.17139,2788.9,2788.3,4.3497]
[1740248161202,7.17139,2788.9,2788.3,7.93604]
[1740248161397,3.58578,2788.8,2788.4,0.19571962]
[1740248161603,3.58615,2788.5,2788.4,0.19571962]
[1740248164617,3.0,2789.1,2788.7,3.78100651]
[1740248164791,3.0,2789.1,2788.8,0.8096]
[1740248164992,3.0,2789.1,2788.9,0.1948354]
[1740248165292,6.5854,2789.1,2788.9,0.1948354]
[1740248166718,10.17088,2789.1,2788.9,0.1948354]
[1740248167285,6.5854,2789.1,2788.9,0.1948354]
[1740248167486,10.17086,2789.1,2788.9,0.1948354]
[1740248167891,3.58551,2789.0,2788.9,0.1948354]
[1740248168214,4.40151,2789.0,2788.9,0.1948354]
[1740248168416,3.58588,2788.8,2788.3,0.7538]
[1740248168583,3.58588,2788.8,2788.4,0.19526773]
[1740248169178,0.816,2789.0,2788.5,3.58615]
[1740248169383,4.40152,2789.0,2788.6,0.19505659]
[1740248170226,4.40154,2789.0,2788.6,0.19505659]
[1740248170521,7.401,2789.4,2788.9,3.58563]
[1740248171018,3.58515,2789.3,2789.0,0.1946344]
[1740248171183,3.58526,2789.2,2788.7,4.71771266]
[1740248171383,3.58547,2789.1,2788.8,0.19484548]
[1740248171595,3.58547,2789.1,2788.7,1.13191266]
[1740248171802,3.58547,2789.1,2788.8,0.19484548]
[1740248171998,3.58547,2789.1,2788.7,1.13191266]
[1740248172211,7.17095,2789.1,2788.8,0.19484548]
[1740248172414,3.58559,2789.0,2788.7,0.7538]
[1740248172608,3.58559,2789.0,2788.9,0.71837274]
[1740248172814,3.58547,2789.1,2788.9,0.91311267]
[1740248173120,3.816,2789.4,2788.9,0.91311267]
[1740248173323,3.58546,2789.1,2788.9,0.91311267]
[1740248173525,3.58551,2789.0,2788.9,0.91311267]
[1740248173887,3.58522,2789.3,2788.9,0.91311267]
[1740248174091,3.816,2789.4,2788.9,0.91311267]
[1740248174315,3.58551,2789.0,2788.9,0.91311267]
[1740248174528,3.58551,2789.0,2788.9,0.19473993]
[1740248174829,3.58551,2789.0,2788.7,0.7538]
[1740248175006,3.58527,2789.2,2788.8,0.19484548]
[1740248175206,3.58527,2789.2,2788.7,1.18778]
[1740248175392,3.58527,2789.2,2788.8,0.1945973]
[1740248175593,3.58527,2789.2,2788.7,1.18778]
[1740248175793,3.58545,2789.1,2788.8,0.1945973]
[1740248175994,3.58545,2789.1,2788.7,1.18778]
[1740248176207,3.58545,2789.1,2788.8,0.1945973]
[1740248176407,3.58545,2789.1,2788.7,1.18778]
[1740248176608,3.58545,2789.1,2788.8,0.1945973]
[1740248176821,3.816,2789.4,2788.7,1.18778]
[1740248177152,3.58558,2789.0,2788.8,0.1945973]
[1740248177500,3.58558,2789.0,2788.7,0.7538]
[1740248177831,3.58558,2789.0,2788.8,0.1945973]
[1740248178032,3.58558,2789.0,2788.7,0.7538]
[1740248178227,3.58558,2789.0,2788.8,0.1945973]
[1740248178434,3.58558,2789.0,2788.7,0.7538]
[1740248178635,3.58558,2789.0,2788.8,0.1945973]
[1740248178853,3.58558,2789.0,2788.7,0.7538]
[1740248179136,3.58558,2789.0,2788.9,0.19449176]
[1740248179296,3.58558,2789.0,2788.8,0.1945973]
[1740248179500,3.58558,2789.0,2788.7,0.7538]
[1740248179713,3.58558,2789.0,2788.9,0.19449176]
[1740248179910,3.58546,2789.1,2788.8,0.1945973]
[1740248180129,3.58546,2789.1,2788.9,0.19449176]
[1740248180337,3.58551,2789.0,2788.9,0.19449176]
[1740248180501,3.58551,2789.0,2788.7,0.7538]
[1740248180699,3.58551,2789.0,2788.9,0.19449176]
[1740248180919,3.58551,2789.0,2788.8,0.1945973]
[1740248181199,3.58551,2789.0,2788.9,0.19449176]
[1740248181410,3.58551,2789.0,2788.7,0.7538]
[1740248181639,3.58551,2789.0,2788.8,0.1945973]
[1740248181930,3.58551,2789.0,2788.7,0.7538]
[1740248182117,3.58551,2789.0,2788.9,0.19449176]
[1740248182427,3.58551,2789.0,2788.8,0.1945973]
[1740248182649,3.58551,2789.0,2788.7,0.7538]
[1740248182846,3.58551,2789.0,2788.9,0.19449176]
[1740248183012,3.58551,2789.0,2788.7,1.187789]
[1740248183212,3.58551,2789.0,2788.8,0.1945973]
[1740248183399,3.58551,2789.0,2788.7,1.187789]
[1740248183600,3.58551,2789.0,2788.8,0.1945973]
[1740248183799,3.58551,2789.0,2788.7,1.187789]
[1740248184031,3.58551,2789.0,2788.8,0.1945973]
[1740248184231,3.58551,2789.0,2788.7,1.187789]
[1740248184535,3.58551,2789.0,2788.8,0.1945973]
[1740248184932,3.58551,2789.0,2788.7,1.187789]
[1740248185134,3.58551,2789.0,2788.9,0.19449176]
[1740248185433,3.58551,2789.0,2788.7,1.187789]
[1740248185630,3.58551,2789.0,2788.8,0.1945973]
[1740248185831,3.58551,2789.0,2788.7,1.187789]
[1740248185832,3.58521,2789.3,2788.7,1.187789]
[1740248186033,3.816,2789.4,2788.9,3.58555]
[1740248186034,6.58501,2789.4,2788.9,3.58555]
[1740248186226,6.58501,2789.4,2789.1,0.7756]
[1740248186535,3.58501,2789.4,2789.2,0.19417517]
[1740248186735,3.58469,2789.7,2789.2,0.19417517]
[1740248186935,3.58469,2789.7,2789.2,4.23492069]
[1740248187603,6.58453,2789.8,2789.3,3.58505]
[1740248187805,6.58453,2789.8,2789.4,0.96927784]
[1740248188524,3.0,2789.8,2789.4,4.55426784]
[1740248188733,3.0,2789.8,2789.4,0.96927784]
[1740248188974,6.5845,2789.8,2789.4,0.96927784]
[1740248190238,3.58464,2789.7,2789.4,0.96927784]
[1740248191736,3.0,2789.8,2789.4,5.05525618]
[1740248192643,3.58443,2789.9,2789.4,5.05519618]
[1740248192841,3.58449,2789.8,2789.4,1.47027618]
[1740248193049,3.58443,2789.9,2789.4,1.47027618]
[1740248193731,3.58443,2789.9,2789.4,5.05525618]
[1740248193935,3.58443,2789.9,2789.5,0.86402962]
[1740248194248,3.58443,2789.9,2789.6,0.19346685]
[1740248194843,3.58449,2789.8,2789.6,0.19346685]
[1740248195147,3.58448,2789.8,2789.6,0.19346685]
[1740248198155,3.58461,2789.7,2789.6,0.19346685]
[1740248198720,3.58461,2789.7,2789.4,0.7756]
[1740248199054,3.58449,2789.8,2789.5,0.19357234]
[1740248201007,3.58466,2789.7,2789.5,0.19357234]
[1740248201248,3.58468,2789.7,2789.5,0.19357234]
[1740248201547,3.58474,2789.6,2789.5,0.19357234]
[1740248204440,3.58498,2789.5,2789.2,0.7652]
[1740248205068,4.35002,2789.3,2789.1,0.33476004]
[1740248205346,3.58525,2789.2,2789.1,0.33476004]
[1740248206963,3.58551,2789.0,2788.9,3.6289]
[1740248209629,3.0,2789.2,2788.4,0.8245]
[1740248209816,3.58587,2788.8,2788.4,0.8245]
[1740248210012,3.58587,2788.8,2788.4,2.024094]
[1740248210718,3.58587,2788.8,2788.4,5.610374]
[1740248211313,3.58558,2789.0,2788.4,5.610304]
[1740248211518,3.58534,2789.2,2788.5,3.58604]
[1740248211753,3.58534,2789.2,2788.6,0.7589]
[1740248211940,3.58534,2789.2,2788.7,0.434494]
[1740248212254,3.58534,2789.2,2788.8,0.18724627]
[1740248212456,3.58534,2789.2,2788.7,4.020384]
[1740248212818,3.58534,2789.2,2788.8,0.18724627]
[1740248213060,3.58534,2789.2,2788.7,7.606204]
[1740248213238,3.58534,2789.2,2788.8,0.18724627]
[1740248213439,3.58534,2789.2,2788.7,4.020314]
[1740248213740,3.58534,2789.2,2788.8,0.18724627]
[1740248214062,3.58534,2789.2,2788.7,4.020314]
[1740248214452,0.7649,2789.3,2788.9,3.58556]
[1740248214789,0.7649,2789.3,2789.0,0.18703519]
[1740248215145,3.58507,2789.4,2789.0,0.18703519]
[1740248215996,0.8203,2789.5,2789.0,0.18703519]
[1740248215997,0.8203,2789.5,2789.0,0.98053519]
[1740248216201,0.8203,2789.5,2789.1,3.58538]
[1740248216399,3.585,2789.4,2789.1,0.45659152]
[1740248216690,3.585,2789.4,2789.2,0.18682414]
[1740248217051,4.40517,2789.5,2789.2,0.18682414]
[1740248218293,3.58502,2789.4,2789.2,0.18682414]
[1740248218693,4.40519,2789.5,2789.0,4.37892]
[1740248218898,4.40519,2789.5,2789.3,0.18671863]
[1740248219057,4.40519,2789.5,2789.0,5.17538]
[1740248219257,3.7529,2789.7,2789.1,0.18692966]
[1740248219537,3.7529,2789.7,2789.3,3.58502]
[1740248220010,3.7529,2789.7,2789.4,0.18661312]
[1740248220163,0.7529,2789.7,2789.4,0.18661312]
[1740248221302,3.58481,2789.6,2789.4,0.18661312]
[1740248221505,0.7529,2789.7,2789.2,3.58524]
[1740248221809,4.33758,2789.7,2789.5,0.18658998]
[1740248221973,4.33758,2789.7,2789.1,3.58538]
[1740248222174,4.33758,2789.7,2789.6,0.18648449]
[1740248222400,4.33758,2789.7,2789.1,3.58538]
[1740248222601,4.33758,2789.7,2789.6,0.18648449]
[1740248223077,3.58478,2789.6,2789.2,3.58521]
[1740248223280,3.58478,2789.6,2789.0,4.37891]
[1740248223481,3.58478,2789.6,2789.2,0.437871]
[1740248223794,3.58478,2789.6,2789.3,0.18680098]
[1740248224358,3.5849,2789.5,2789.1,3.58534]
[1740248224562,3.5849,2789.5,2789.4,0.18669548]
[1740248224764,3.5849,2789.5,2789.1,4.023224]
[1740248224976,3.5849,2789.5,2789.4,0.18669548]
[1740248225189,3.5849,2789.5,2789.1,4.023224]
[1740248225390,3.5849,2789.5,2789.4,0.18669548]
[1740248225775,3.5849,2789.5,2789.1,4.023224]
[1740248225974,3.5849,2789.5,2789.4,0.18671448]
[1740248226294,3.5849,2789.5,2789.2,0.4816724]
[1740248226505,3.5849,2789.5,2789.3,0.18681999]
[1740248227079,3.5849,2789.5,2789.2,0.4816724]
[1740248227397,3.5849,2789.5,2789.3,0.18681999]
[1740248227599,3.5849,2789.5,2789.2,0.4816724]
[1740248227802,3.5849,2789.5,2789.4,0.18671448]
[1740248228288,3.5849,2789.5,2789.2,0.4816724]
[1740248228483,3.5849,2789.5,2789.3,0.18681999]
[1740248228803,3.5849,2789.5,2789.2,0.4816724]
[1740248228983,3.5849,2789.5,2789.4,0.18671448]
[1740248229182,3.5849,2789.5,2789.3,0.18681999]
[1740248229390,3.5849,2789.5,2789.2,0.4816724]
[1740248229601,3.5849,2789.5,2789.4,0.18671448]
[1740248229770,3.5849,2789.5,2789.3,0.18681999]
[1740248229967,3.5849,2789.5,2789.1,4.023224]
[1740248230172,3.5849,2789.5,2789.4,0.18671448]
[1740248230372,3.5849,2789.5,2789.1,4.023224]
[1740248230872,3.5849,2789.5,2789.2,0.1869255]
[1740248231408,0.7529,2789.7,2789.2,0.1869255]
[1740248231593,4.39042,2789.3,2789.2,0.1869255]
[1740248231798,3.5856,2789.0,2788.8,0.8042]
[1740248231999,3.5856,2789.0,2788.8,1.24751]
[1740248232606,3.5856,2789.0,2788.8,0.44331]
[1740248233206,3.58559,2789.0,2788.6,4.4331]
[1740248237012,7.17118,2789.0,2788.7,0.33574064]
[1740248237233,3.58564,2788.9,2788.7,0.33574064]
[1740248238116,3.58564,2788.9,2788.6,0.8042]
[1740248238616,0.8053,2788.8,2788.5,10.91114]
[1740248238819,3.58602,2788.6,2788.1,4.4331]
[1740248239114,3.58637,2788.4,2788.2,0.44331]
[1740248239322,3.58637,2788.4,2788.1,0.8042]
[1740248239490,3.58619,2788.5,2788.1,0.8042]
[1740248239886,4.3916,2788.4,2787.9,1.50757105]
[1740248240107,3.58642,2788.3,2787.9,4.39111]
[1740248240280,3.58642,2788.3,2787.7,3.58706]
[1740248240281,3.58667,2788.1,2787.6,11.71651]
[1740248240487,3.5865,2788.3,2787.6,13.250931]
[1740248240686,3.58666,2788.2,2787.6,13.250931]
[1740248241141,3.5865,2788.3,2787.6,13.250931]
[1740248241291,3.58669,2788.1,2787.7,0.33569188]
[1740248241789,3.58671,2788.1,2787.7,0.33569188]
[1740248242206,0.7814,2788.2,2787.7,0.33569188]
[1740248242401,0.7814,2788.2,2787.8,0.18858093]
[1740248242796,0.7814,2788.2,2787.7,0.33569188]
[1740248243015,3.5868,2788.0,2787.9,0.18847531]
[1740248243221,4.36854,2787.8,2787.6,7.325]
[1740248243421,3.58718,2787.7,2787.6,7.325]
[1740248243738,4.36854,2787.8,2787.6,7.50758019]
[1740248243915,0.7814,2787.8,2787.6,7.50758019]
[1740248244516,4.36853,2787.8,2787.6,7.50758019]
[1740248244745,3.58718,2787.7,2787.6,7.50758019]
[1740248244917,4.36853,2787.8,2787.6,7.50758019]
[1740248245126,0.7814,2787.8,2787.6,7.50758019]
[1740248245434,3.58664,2788.2,2787.6,12.20426721]
[1740248245612,0.27197899,2788.9,2788.1,3.58667]
[1740248245613,6.0214,2788.5,2788.1,3.58667]
[1740248246021,6.0214,2788.5,2788.2,0.18264389]
[1740248246410,3.58641,2788.3,2788.2,0.18264389]
[1740248246604,0.8062,2788.1,2787.6,11.70525]
[1740248248037,4.39296,2788.1,2787.6,8.118]
[1740248249472,7.9797,2788.1,2787.6,7.325]
[1740248249631,4.39294,2788.1,2787.6,10.91231]
[1740248249830,3.5868,2788.0,2787.6,7.325]
[1740248250275,7.9797,2788.1,2787.6,7.325]
[1740248250577,4.39294,2788.1,2787.6,7.325]
[1740248251060,4.39294,2788.1,2787.6,10.9123]
[1740248251247,7.97971,2788.1,2787.6,7.325]
[1740248251442,4.39294,2788.1,2787.6,7.325]
[1740248252358,1.604144,2788.1,2787.6,7.325]
[1740248252675,3.58707,2787.8,2787.6,7.325]
[1740248254251,3.588,2787.1,2786.6,3.58853]
[1740248254570,0.8062,2787.2,2786.6,3.5886]
[1740248254733,0.8062,2787.2,2786.7,0.5233177]
[1740248254933,0.8062,2787.2,2786.7,1.22987809]
[1740248255128,0.8062,2787.2,2786.7,0.85606739]
[1740248255374,0.8062,2786.8,2786.7,0.85606739]
[1740248255532,4.39454,2786.8,2786.7,0.85606739]
[1740248255728,3.0,2787.0,2786.7,0.85606739]
[1740248255940,7.39435,2787.0,2786.7,0.85606739]
[1740248256142,3.58834,2786.8,2786.7,0.85606739]
[1740248256962,3.58834,2786.8,2786.7,0.149507]
[1740248257278,3.58834,2786.8,2786.7,0.32705625]
[1740248257439,3.58834,2786.8,2786.7,0.149507]
[1740248257770,3.58834,2786.8,2786.7,0.32705625]
[1740248257973,3.58834,2786.8,2786.7,0.149507]
[1740248258174,3.58834,2786.8,2786.7,0.32705625]
[1740248258373,3.58834,2786.8,2786.7,0.149507]
[1740248258561,3.58834,2786.8,2786.7,0.32769703]
[1740248258755,3.58834,2786.8,2786.7,0.149507]
[1740248259073,3.58834,2786.8,2786.7,0.32769703]
[1740248259271,11.8700403,2786.8,2786.7,0.149507]
[1740248259474,11.8700403,2786.8,2786.7,0.32769703]
[1740248259638,11.8700403,2786.8,2786.7,0.149507]
[1740248260769,12.4200403,2786.8,2786.7,0.149507]
[1740248263669,17.6600403,2786.8,2786.7,0.149507]
[1740248263874,18.17744868,2786.8,2786.7,7e-06]
[1740248264582,17.6600403,2786.8,2786.7,7e-06]
[1740248266080,18.17744868,2786.8,2786.7,7e-06]
[1740248267334,17.6600403,2786.8,2786.7,7e-06]
[1740248278601,17.9220403,2786.8,2786.7,7e-06]
[1740248278986,17.6600403,2786.8,2786.7,7e-06]
[1740248284311,16.8961403,2786.8,2786.7,7e-06]
[1740248285203,12.1380325,2786.8,2786.7,0.18045041]
[1740248285400,12.1380325,2786.8,2786.7,7e-06]
[1740248286496,15.1380325,2786.8,2786.7,7e-06]
[1740248286816,15.1380325,2786.8,2786.7,0.18031068]
[1740248287017,15.1380325,2786.8,2786.7,7e-06]
[1740248287222,15.1380325,2786.8,2786.7,0.18031068]
[1740248287518,15.1380325,2786.8,2786.7,7e-06]
[1740248288286,8.24,2786.8,2786.7,7e-06]
[1740248288581,6.8976925,2787.1,2786.7,0.760207]
[1740248288994,3.0,2787.0,2786.8,0.18007731]
[1740248289398,3.588,2787.1,2786.7,0.760207]
[1740248289608,3.58779,2787.3,2786.8,3.58827]
[1740248289865,3.58779,2787.3,2786.9,0.7602]
[1740248290019,3.3096925,2787.4,2786.9,0.7602]
[1740248290314,8.5496925,2787.7,2787.2,0.7602]
[1740248290520,3.587,2787.9,2787.4,4.34776]
[1740248290718,3.0,2787.8,2787.4,0.7602]
[1740248290921,3.0,2787.8,2787.5,0.17881054]
[1740248291117,3.58728,2787.7,2787.5,0.17881054]
[1740248291358,3.58731,2787.6,2787.5,0.17881054]
[1740248291908,6.58731,2787.6,2787.1,0.7666]
[1740248292109,6.58731,2787.6,2786.8,0.7666]
[1740248292110,3.58821,2786.9,2786.8,0.7666]
[1740248294019,3.0,2787.3,2786.8,0.7666]
[1740248294220,3.58834,2786.8,2786.7,7e-06]
[1740248294598,10.4480325,2786.8,2786.7,7e-06]
[1740248294798,11.85165775,2786.8,2786.7,7e-06]
[1740248295188,17.91075775,2786.8,2786.7,7e-06]
[1740248302417,18.17275775,2786.8,2786.7,7e-06]
[1740248304324,17.91075775,2786.8,2786.7,7e-06]
[1740248304527,18.17275775,2786.8,2786.7,7e-06]
[1740248304728,18.69016613,2786.8,2786.7,7e-06]
[1740248307541,18.69016613,2786.8,2785.4,0.7523]
[1740248307542,3.59001,2785.5,2785.4,0.7523]
[1740248307845,3.59001,2785.5,2785.4,0.93387054]
[1740248310435,12.38001,2785.5,2785.4,0.18157054]
[1740248310927,5.24,2785.5,2785.1,0.7523]
[1740248311132,5.24,2785.5,2785.2,0.7666]
[1740248311354,5.24,2785.8,2785.2,1.202312]
[1740248311534,3.5901,2785.5,2785.3,0.18219729]
[1740248312031,3.5901,2785.5,2785.2,0.7666]
[1740248312032,6.5901,2785.5,2785.4,0.18260609]
[1740248312397,3.0,2785.5,2785.2,0.7666]
[1740248312804,8.82971,2785.8,2785.3,0.1827119]
[1740248313032,8.82971,2785.8,2785.4,0.7666]
[1740248313333,3.0,2785.6,2785.4,0.7666]
[1740248313635,3.0,2785.6,2785.5,0.18250029]
[1740248314117,3.0,2785.7,2785.5,0.18250029]
[1740248314313,6.58983,2785.7,2785.4,0.7666]
[1740248314497,6.58983,2785.7,2785.6,0.18239449]
[1740248314701,6.58983,2785.7,2785.5,0.18250029]
[1740248314900,6.58983,2785.7,2785.6,0.18239449]
[1740248315337,3.3096925,2785.9,2785.4,0.7666]
[1740248315523,3.58951,2785.9,2785.7,0.7666]
[1740248315846,5.24,2786.0,2785.7,0.7666]
[1740248316140,8.82938,2786.0,2785.8,0.18218293]
[1740248316745,12.41885,2786.0,2785.8,0.18218293]
[1740248316930,8.82938,2786.0,2785.8,0.18218293]
[1740248317108,3.5895,2785.9,2785.8,0.18218293]
[1740248317510,3.5895,2785.9,2785.7,0.7666]
[1740248317758,3.58963,2785.8,2785.7,0.7666]
[1740248318356,5.24,2786.0,2785.7,0.7666]
[1740248318552,8.82949,2786.0,2785.7,0.94888871]
[1740248319419,3.58951,2785.9,2785.7,0.94888871]
[1740248320340,3.58937,2786.0,2785.7,0.94888871]
[1740248321760,3.58958,2785.9,2785.7,0.94888871]
[1740248322045,3.58963,2785.8,2785.7,0.94888871]
[1740248323443,3.58963,2785.8,2785.7,0.7666]
[1740248323839,3.58963,2785.8,2785.7,0.94888871]
[1740248324239,3.58951,2785.9,2785.7,0.94888871]
[1740248324437,3.58951,2785.9,2785.7,0.7666]
[1740248324826,3.58951,2785.9,2785.8,0.18218293]
[1740248328283,3.58938,2786.0,2785.8,0.18218293]
[1740248328935,7.17886,2786.0,2785.8,0.18218293]
[1740248329135,3.0,2786.1,2785.8,0.18218293]
[1740248329571,3.58945,2786.0,2785.8,0.18218293]
[1740248329833,3.58906,2786.3,2785.8,0.18218293]
[1740248330082,3.58844,2786.8,2786.1,4.37298]
[1740248330376,3.58857,2786.7,2786.2,0.7838]
[1740248330534,3.0,2786.6,2786.2,0.96501343]
[1740248330879,5.24,2787.0,2786.4,0.8047]
[1740248331033,3.58844,2786.8,2786.4,0.8047]
[1740248331240,3.58851,2786.7,2786.5,0.18064851]
[1740248332463,7.91113576,2786.9,2786.5,0.18064851]
[1740248332637,3.58847,2786.7,2786.5,0.18064851]
[1740248333763,3.5886,2786.6,2786.5,0.18064851]